Cogmind - Beta 10 @@@ ROGUE MODE // 2020.09.12 @ 05:01:10 // Winter2019/RPGLIKE Player: Torako Result: Destroyed by DAS Turret with DAS Cannon Performance ------------- Evolutions (0) 0 Regions Visited (3) 600 Robots Destroyed (20) 100 Value Destroyed (338) 338 Prototype IDs (26) 520 Alien Tech Used (0) 0 Bonus (68) 68 TOTAL SCORE: 1626 Bonus ------- High Alert Combat Kills 8 Aligned with FarCom 300 Friendly Fire -240 Cogmind --------- Core Integrity 0/600 Matter 230/300 Energy 121/125 System Corruption 2% Temperature Cool (0) Movement Walking (45) Location -10/Exiles Parts ------- > --- POWER (1) -------- Light Ion Engine > --- PROPULSION (2) --- Potential Leg Potential Leg > --- UTILITY (2) ------ Decoy Drone Bay (0/16) > --- WEAPON (2) ------- Grenade Launcher Mining Claw > --- INVENTORY (2) ---- (None) Peak State ------------ > --- POWER ------------ Light Ion Engine > --- PROPULSION ------- Potential Leg Potential Leg > --- UTILITY ---------- Decoy Drone Bay > --- WEAPON ----------- Grenade Launcher Mining Claw > --- INVENTORY -------- (None) [Rating: 37] Favorites ----------- Power Light Ion Engine Engine Light Ion Engine Propulsion Flight Unit Leg Potential Leg Wheel Compact Wheel Flight Unit Flight Unit Utility Light Armor Plating Device Terrain Scanner Protection Light Armor Plating Weapon Mining Claw Energy Gun Medium Laser Ballistic Gun Light Assault Rifle Launcher Grenade Launcher Slashing Weapon Mining Claw Build | -11 -10 -10 -10 ------- Run | Scr Mat Min Exi Slots Evolved 3 | . 1 2 . Power . | . . . . Propulsion 1 | . . 1 . Utility 1 | . 1 . . Weapon 1 | . . 1 . Parts Attached 23 | 3 5 12 3 Power 1 | 1 . . . Engine 1 | 1 . . . Core . | . . . . Reactor . | . . . . Propulsion 5 | 1 1 1 2 Treads . | . . . . Leg 2 | . . . 2 Wheel 1 | 1 . . . Hover . | . . . . Flight 2 | . 1 1 . Utility 7 | . 3 3 1 Device 4 | . 1 2 1 Storage . | . . . . Processor . | . . . . Hackware . | . . . . Protection 3 | . 2 1 . Artifact . | . . . . Weapon 10 | 1 1 8 . Energy Gun 1 | 1 . . . Energy Cannon . | . . . . Ballistic Gun 1 | . . 1 . Ballistic Cannon . | . . . . Launcher 4 | . . 4 . Special Weapon . | . . . . Impact Weapon . | . . . . Slashing Weapon 4 | . 1 3 . Piercing Weapon . | . . . . Special Melee Weapon . | . . . . Unidentified Prototypes 1 | . . 1 . Parts Lost . | . . . . Power . | . . . . Propulsion . | . . . . Utility . | . . . . Weapon . | . . . . Highest Loss Streak . | . . . . Average Slot Usage (%) 93 | . 84 99 95 Engine 17 | . 21 16 14 Leg 3 | . . . 17 Wheel 6 | . 18 . . Flight 15 | . 2 29 10 Device 12 | . 6 16 14 Protection 14 | . 13 16 10 Energy Gun 6 | . 17 . . Launcher 4 | . . 3 14 Slashing Weapon 9 | . 4 11 14 Naked Turns . | . . . . Heaviest Build 22 | 5 9 12 22 Greatest Support 65 | 16 16 13 65 Greatest Overweight (x) 1 | . . 1 1 Average Overweight (x) . | . . . . Largest Inventory Capacity 2 | . 1 2 2 Average Capacity 1 | . . 1 2 Most Carried 2 | . 1 2 2 Average Carried . | . . 1 1 Final Capacity 2 | . 1 2 2 Final Carried 2 | . 1 2 . Class Distribution -------------------- 92% | Hacker-Mutant 7% | Mutant Dominant Class ---------------- Hacker-Mutant | -10/Materials Hacker-Mutant | -10/Mines Hacker-Mutant | -10/Exiles Resources | -11 -10 -10 -10 ----------- Run | Scr Mat Min Exi Matter Collected 522 | 230 50 242 . Remotely . | . . . . Salvage Created 331 | . 121 210 . Parts 31 | . 5 26 . Haulers Intercepted 1 | . 1 . . Recyclers Shooed . | . . . . Parts Field Recycled . | . . . . Retrieved Matter . | . . . . Parts Self-Destructed . | . . . . Prevented . | . . . . Kills | -11 -10 -10 -10 ------- Run | Scr Mat Min Exi Combat Hostiles Destroyed 15 | . 2 13 . Melee 1 | . . 1 . Guns 3 | . 2 1 . AOE 11 | . . 11 . Classes Destroyed 6 | . 2 4 . Builder 2 | . . 2 . Hauler 1 | . 1 . . Recycler 1 | . . 1 . Operator 1 | . . 1 . Swarmer 9 | . . 9 . Grunt 6 | . 2 4 . Best Kill Streak 9 | . 1 9 . Combat Bots Only 7 | . 1 7 . Max Kills in Single Turn 2 | . 1 2 . Gunslinging . | . . . . Exploded 2 | . . 2 . Melee 1 | . . 1 . Uniques/NPCs Destroyed . | . . . . Combat | -11 -10 -10 -10 -------- Run | Scr Mat Min Exi Damage Taken 1076 | . 212 411 453 Core 835 | . 163 297 375 Absorbed by Shields . | . . . . Redirected to Core 561 | . 84 190 287 Core Remaining (%) 100 | 100 . . . Volleys Fired 47 | . 20 27 . Largest 1 | . 1 1 . Hottest 50 | . 50 30 . Shots Fired 47 | . 20 27 . Gun 32 | . 20 12 . Cannon . | . . . . Launcher 15 | . . 15 . Special . | . . . . Kinetic 12 | . . 12 . Thermal 20 | . 20 . . Explosive 15 | . . 15 . Electromagnetic . | . . . . Robot Hit Streak 5 | . 5 4 . Robot Miss Streak 2 | . 2 1 . Penetration Max . | . . . . Secondary Targets . | . . . . Shots Hit Robots 39 | . 17 17 5 Core Hits 35 | . 6 27 2 Critical Hits . | . . . . Critical Kills . | . . . . Critical Parts Destroyed . | . . . . Melee Attacks 20 | . 3 9 8 Impact . | . . . . Slashing 20 | . 3 9 8 Piercing . | . . . . Sneak Attacks 2 | . 1 . 1 Combat Hostiles . | . . . . Follow-up Attacks . | . . . . Damage Inflicted 1388 | . 321 908 159 Guns 262 | . 200 62 . Cannons . | . . . . Explosions 714 | . . 714 . Melee 412 | . 121 132 159 Ramming . | . . . . Kinetic 62 | . . 62 . Thermal 200 | . 200 . . Explosive 714 | . . 714 . Electromagnetic . | . . . . Impact . | . . . . Slashing 412 | . 121 132 159 Piercing . | . . . . Highest Corruption 1 | . . . 1 Average Corruption 1 | . . . 1 Corruption Purged . | . . . . Overload Shots . | . . . . Overflow Damage 53 | . 39 14 . Projectiles . | . . . . Explosions . | . . . . Melee 53 | . 39 14 . Knockbacks . | . . . . Impact . | . . . . Kinetic . | . . . . Secondary . | . . . . Self-Inflicted Damage 45 | . . 45 . Shots 2 | . . 2 . Rammed . | . . . . Targets Rammed . | . . . . Kicked . | . . . . Crushed . | . . . . Highest Temperature 166 | . 166 27 . Average Temperature 47 | . 68 11 . Received Heat Transfer 231 | . 114 117 . Siege Activations . | . . . . Robots Corrupted . | . . . . Combat Hostiles . | . . . . Parts Fried . | . . . . Impact Corruptions . | . . . . Robots Melted . | . . . . Combat Hostiles . | . . . . Parts Melted . | . . . . Heat Transferred 592 | . 592 . . Parts Sabotaged . | . . . . Parts Stolen . | . . . . Parts Stripped . | . . . . Power Chain Reactions . | . . . . Missiles Intercepted . | . . . . Alert | -11 -10 -10 -10 ------- Run | Scr Mat Min Exi Peak Influence 413 | . 111 413 . Initial 43 | . . 43 . Average 174 | . 44 315 . Maximum Alert Level 2 | . . 2 . Low Security (%) 65 | 100 100 29 . Level 1 7 | . . 15 . Level 2 26 | . . 54 . Level 3 . | . . . . Level 4 . | . . . . Level 5 . | . . . . High Security . | . . . . Max Security . | . . . . Squads Dispatched 1 | . 1 . . Investigation . | . . . . Extermination . | . . . . Reinforcement 1 | . 1 . . Assault . | . . . . Garrison . | . . . . Intercept . | . . . . Construction Impeded . | . . . . Haulers Reinforced . | . . . . Stealth | -11 -10 -10 -10 --------- Run | Scr Mat Min Exi Distress Signals . | . . . . Communications Jammed . | . . . . Distress Signals . | . . . . Times Spotted 42 | . 6 13 23 Peak Tracking Total 12 | . 3 3 12 Tactical Retreats 2 | . . . 2 Traps | -11 -10 -10 -10 ------- Run | Scr Mat Min Exi Traps Triggered . | . . . . Indirectly . | . . . . Trap Hack Attempts . | . . . . Triggered . | . . . . Disarmed . | . . . . Reprogrammed . | . . . . Reused . | . . . . Traps Extracted . | . . . . Installed . | . . . . Triggered . | . . . . Machines | -11 -10 -10 -10 ---------- Run | Scr Mat Min Exi Machines Disabled . | . . . . Max in Single Turn . | . . . . Machines Sabotaged . | . . . . Garrisons Compromised . | . . . . Overloaded Fab Kills . | . . . . Fab Network Shutdowns . | . . . . Hacking | -11 -10 -10 -10 --------- Run | Scr Mat Min Exi Machines Accessed 9 | . 6 1 2 Terminals 6 | . 6 . . Fabricators . | . . . . Repair Stations . | . . . . Recycling Units . | . . . . Scanalyzers . | . . . . Garrison Access . | . . . . Total Hacks 27 | . 21 1 5 Successful 19 | . 13 1 5 Failed 8 | . 8 . . Catastrophic . | . . . . Database Lockouts . | . . . . Manual 17 | . 16 . 1 Terminals 21 | . 21 . . Fabricators . | . . . . Repair Stations . | . . . . Recycling Units . | . . . . Scanalyzers . | . . . . Garrison Access . | . . . . Terminal Hacks 13 | . 7 1 5 Record 4 | . . . 4 Robot Analysis 2 | . 2 . . Prototype ID Bank 1 | . 1 . . Open Door 1 | . . 1 . Branch Access Points 1 | . 1 . . Terminal Index 1 | . 1 . . Transport Status 1 | . 1 . . Zone Layout 1 | . 1 . . EX-Prototype ID Bank 1 | . . . 1 Fabricator Hacks . | . . . . Repair Station Hacks . | . . . . Recycling Unit Hacks . | . . . . Scanalyzer . | . . . . Garrison Access Hacks . | . . . . Unauthorized Hacks 6 | . 6 . . Terminals 6 | . 6 . . Assimilate 1 | . 1 . . Botnet 4 | . 4 . . Operators 1 | . 1 . . Fabricators . | . . . . Repair Stations . | . . . . Recycling Units . | . . . . Scanalyzers . | . . . . Garrison Access . | . . . . Data Cores Recovered . | . . . . Used . | . . . . Hacking Detections 6 | . 6 . . Full Trace Events . | . . . . Feedback Events . | . . . . Feedback Blocked . | . . . . Robot Schematics Acquired . | . . . . Robots Built . | . . . . Matter . | . . . . Time . | . . . . Total Robot Build Rating . | . . . . Part Schematics Acquired . | . . . . Parts Built . | . . . . Matter . | . . . . Time . | . . . . Total Part Build Rating . | . . . . Parts Repaired . | . . . . Time . | . . . . Parts Recycled . | . . . . Recycled Matter . | . . . . Retrieved Matter . | . . . . Retrieved Components . | . . . . Parts Scanalyzed . | . . . . Part Schematics Acquired . | . . . . Parts Damaged . | . . . . Bothacking | -11 -10 -10 -10 ------------ Run | Scr Mat Min Exi Used RIF Installer . | . . . . Robots Hacked . | . . . . Non-combat . | . . . . Combat . | . . . . Robot Hacks Applied . | . . . . Relay Couplers Released . | . . . . Robots Rewired . | . . . . Allies Hacked . | . . . . Hacks Repelled . | . . . . Allies | -11 -10 -10 -10 -------- Run | Scr Mat Min Exi Total Allies 1 | . 1 . . Largest Group 1 | . 1 1 . Highest-Rated Group 8 | . 8 8 . Highest-Rated Ally 8 | . 8 8 . Total Orders . | . . . . Ally Attacks . | . . . . Total Damage . | . . . . Kills . | . . . . Allies Corrupted 2 | . . . 2 Allies Melted . | . . . . Intel | -11 -10 -10 -10 ------- Run | Scr Mat Min Exi Robot Analysis Total 2 | . 2 . . Derelict Logs Recovered 1 | . . 1 . Drone Launches 16 | . . . 16 Drone Recoveries . | . . . . Exploration | -11 -10 -10 -10 ------------- Run | Scr Mat Min Exi Turns Passed 832 | 41 292 318 181 Spaces Moved 1093 | 37 260 531 265 Core 4 | 1 . . 3 Treads . | . . . . Legs 72 | . . . 72 Wheels 221 | 36 185 . . Hover . | . . . . Flight 796 | . 75 531 190 Fastest Speed 37 | 50 40 37 37 Average Speed 53 | 98 82 37 51 Slowest Speed 120 | 100 100 120 100 Overloaded Moves 2 | . . . 2 Propulsion Burnouts . | . . . . Robots Hopped 2 | . . 2 . Cave-ins Triggered . | . . . . Exploration Rate (%) 47 | 3 53 74 59 Regions Visited 3 Branch Regions 2 Pre-discovered Areas 2 | . . 1 1 Known Exits Taken 1 | . 1 . . Unknown Exits Taken 2 | 1 . 1 . Scrap Searched 2 | . . 2 . Spaces Dug . | . . . . Terrain Destroyed 97 | . . 97 . Melee . | . . . . Projectile . | . . . . AOE 97 | . . 97 . Terrain Rammed . | . . . . Walls Destroyed . | . . . . Machines Disabled . | . . . . Actions | -11 -10 -10 -10 --------- Run | Scr Mat Min Exi Total 1245 | 39 309 601 296 Wait 41 | . 12 13 16 Move 1086 | 36 259 526 265 Hop 2 | . . 2 . Pick Up 2 | . 1 1 . Fast Attach 16 | 3 5 6 2 Attach 1 | . . . 1 Detach 1 | . . 1 . Swap 6 | . . 6 . Drop 12 | . 3 5 4 Fire 47 | . 20 27 . Melee 20 | . 3 9 8 Ram . | . . . . Kick . | . . . . Crush . | . . . . Escape Stasis . | . . . . Rewire . | . . . . Trap . | . . . . Miscellaneous 11 | . 6 5 . Route ------- -11/Scrapyard -10/Materials (discovered 2 exits: [*Mat] / *Min) -10/Mines (discovered 3 exits: [*Mat x2] / *Exi) -10/Exiles (discovered 1 exit: [*Min]) History --------- Turn | Location | Event 7 | -11/Scrapyard | Discovered new exit (range 15) 42 | -11/Scrapyard | Entered Materials 129 | -10/Materials | Upgraded with Utility slot (x1) 156 | -10/Materials | Identified exit to Mines 175 | -10/Materials | Discovered new exit (range 16) 334 | -10/Materials | Entered Mines 334 | -10/Mines | Accompanied by 1 ally 383 | -10/Mines | Reached level 2 385 | -10/Mines | Upgraded with Propulsion slot (x1) 411 | -10/Mines | Build established: Hacker-Mutant 444 | -10/Mines | Discovered new exit (range 12) 476 | -10/Mines | Core integrity fell below 50% 499 | -10/Mines | Destroyed 7 combat bots 531 | -10/Mines | Learned location of Storage (-8) 542 | -10/Mines | Learned 8 Materials zone layouts 548 | -10/Mines | Discovered new exit (range 6) 604 | -10/Mines | Found the Drone Emporium 613 | -10/Mines | Found Prototype Device 613 | -10/Mines | Identified Decoy Drone Bay 626 | -10/Mines | Upgraded with Weapon slot (x1) 650 | -10/Mines | Deemed a non-threat by the Exiles lab entrance 650 | -10/Mines | Discovered new exit (range 5) 652 | -10/Mines | Entered Exiles 658 | -10/Exiles | Discovered new exit (range 15) 662 | -10/Exiles | Met 8R-AWN 668 | -10/Exiles | Met EX-HEX 682 | -10/Exiles | Met EX-DEC 684 | -10/Exiles | Learned location of Zion (-6) 691 | -10/Exiles | Met EX-BIN 712 | -10/Exiles | Aligned with FarCom system 713 | -10/Exiles | Given EX-Vault access code 721 | -10/Exiles | Opened EX-Vault 727 | -10/Exiles | Found Potential Leg 729 | -10/Exiles | Found Potential Leg 751 | -10/Exiles | Warned to stay clear of 0b10 Research branches 807 | -10/Exiles | Attacked by the Exiles 830 | -10/Exiles | Core integrity fell below 20% 833 | -10/Exiles | Destroyed by DAS Turret with DAS Cannon Last Messages --------------- HV Slug penetrates Wall. Machine disabled. Decoy Drone destroyed. HV Slug penetrates Decoy Drone. Decoy Drone suffers critical hit. Decoy Drone destroyed. HV Slug penetrates Wall. HV Slug penetrates Machine. Machine disabled. HV Slug penetrates Wall. Rigged Rnf. Deuterium Engine explodes. Machine disabled. HV Slug penetrates Wall. HV Slug penetrates Decoy Drone. Decoy Drone destroyed. Knocked back. Rigged Nuclear Core explodes. Decoy Drone destroyed. Knocked back. Machine disabled. Map ----- +----------------------------------------------------+ | ???????????????????????#??#??"" ######?### | | ????????????????????##??????#"" ##########" | | ????????????????????????????#"" "#####?####" | | ??????????????????????#???##? ""##########" | | ???????????????????#??????????" ""###?######" | | ???????????????? #?#?#?#??##?# ###########"" | | ???????????????? #####??#?### ##########"" | | ??????????????? """#####X# #"###""""""" | | ??????????????? """""" " "" | | ??????????????? "" """ " | | ???????????????# " | | ????????????????## | | ?????????????????### | | ?????????????????#?## | | ??????????????####??## | | ??????????????#??##??##" | | ????????????#??##???###""" """""" | | ????????????#????#?#?##" ######""" | | ?????????????#??##???#"" ""########## | | ?????????????????#??##"" % """##?###?##?? | | ????????????????????#""" """##########?? | | ???????????????#????#""" % % ""####?#?#???# | | ?????????????#??????#"" ############# | | ?????????????????##?#""" ## ####"" | | ???????????????###??#"" z """ | | ????????????????????##" @t | | ?????????????????#???#"""" | | ?????????????#???#??### | | ??????????????#???????# " | | ???????????????#???#?##"""" ""## ## | | ????????????????#?#???#"" ""#### ## | | ?????????????????????##" """"##??# #? | | ??????????????????????#""" """#???# #? | | ?????????????????????#?# ""##???! ? | | ??????????????????#?????"" """#????#" ? | | ????????????????????#????""" ??????#" | | ??????????????????????????"""" ????????!!""! | | ???????????????????????????? ? ?????????##### | | ???????????????????????????????? ????????????????? | | ?????????????????????????????????????????????????? | | ?????????????????????????????????????????????????? | | ?????????????????????????????????????????????????? | | ?????????????????????????????????????????????????? | | ?????????????????????????????????????????????????? | | ?????????????????????????????????????????????????? | | ?????????????????????????????????????????????????? | | ?????????????????????????????????????????????????? | | ?????????????????????????????????????????????????? | | ?????????????????????????????????????????????????? | | ?????????????????????????????????????????????????? | +----------------------------------------------------+ Best States ------------- Heat Dissipation 25 Energy Generation 10 Energy Capacity 125 Matter Stores 300 Matter Capacity 300 Sight Range 16 Terrain Scan Range 14 Terrain Scan Density 510 Armor Coverage 150 Weapon Shielding 33 Evasion (%) 62 Offensive Hacking 10 Defensive Hacking 10 Item Schematics ----------------- None Robot Schematics ------------------ None Fabricated ------------ Nothing Alien Tech Used ----------------- None Achievements -------------- None Challenges ------------ None RPGLIKE | -11 -10 -10 -10 --------- Run | Scr Mat Min Exi Levels Raised 1 | . . 1 . XP Earned 5759 | 3000 355 2054 350 XP Spent 4500 | . 3000 1500 . Upgrades 16 | . 13 3 . Propulsion Slot 1 | . . 1 . Utility Slot 1 | . 1 . . Weapon Slot 1 | . . 1 . Mass Support 1 | . 1 . . Inventory Capacity 2 | . 1 1 . Terrain Scan Density 5 | . 5 . . Melee Accuracy 1 | . 1 . . Hack Attack % 2 | . 2 . . Hack Defense % 2 | . 2 . . Protomatter Created 76 | . 45 31 . Integrity Restored 228 | . 135 93 . Core 228 | . 135 93 . Protomatter Decayed . | . . . . Game ------ Seed CooledCooledWarhead Manual? 0 Play Time 00:17:08 Cumulative 230.7 hours Start 2020.09.10 @ 19:35:26 End 2020.09.12 @ 05:01:10 Sessions 1 Manual Loads 0 Difficulty Rogue Special Mode Winter2019/RPGLIKE Game No. 248 Rogue 248 Adventurer 0 Explorer 0 Win Type - Total 12 Types 8/0/3/1/0/0/0/0/0 Lore% 76 Gallery% 87 Achievement% 67 Wizard Run 0 Options --------- ASCII 0 Keyboard 1 Movement Numpad Keybinds 0 Fullscreen 1 Font 18/SmallcapsGlow Map View 76x50 Tactical HUD 1 Map Filters NONE Filters NONE Steam 1 RUN: f3dcb033-deaa-43b5-8aeb-949a338d5ede